[Event "World Prestigious University 2019"]
[Site "Tianjin"]
[Date "2019.11.29"]
[Round "11.8"]
[White "Chandra, Akshat"]
[Black "Zhong, Wei"]
[Result "1-0"]
[WhiteElo "2524"]
[BlackElo "1804"]
[PlyCount "61"]
[EventDate "2019.11.26"]
[EventType "team-tourn"]
[EventCountry "CHN"]
[TimeControl "1500+10"]
[WhiteClock "0:00:33"]
[BlackClock "0:10:24"]

1. Nc3 {[%emt 0:00:23]} d5 {[%emt 0:00:31]} 2. e4 {[%emt 0:00:05]} e6 {[%emt 0:00:42]} 3. d4 {[%emt 0:00:11]} Nf6 {[%emt 0:00:42]} 4. Bg5 {[%emt 0:00:03]} dxe4 {[%emt 0:00:24]} 5. Nxe4 {[%emt 0:00:07]} Be7 {[%emt 0:00:40]} 6. Bxf6 {[%emt 0:00:05]} Bxf6 {[%emt 0:00:06]} 7. Nf3 {[%emt 0:00:07]} O-O {[%emt 0:01:08]} 8. c3 {[%emt 0:01:29]} Nd7 {[%emt 0:02:50]} 9. Bd3 {[%emt 0:00:03]} b6 {[%emt 0:00:14]} 10. Qe2 {[%emt 0:00:03]} Bb7 {[%emt 0:00:31]} 11. O-O-O {[%emt 0:00:08]} Qe7 {[%emt 0:01:25]} 12. g4 {[%emt 0:00:16]} g6 {[%emt 0:03:13]} 13. h4 {[%emt 0:00:40]} c5 {[%emt 0:00:34]} 14. g5 {[%emt 0:02:39]} Bg7 {[%emt 0:02:03]} 15. h5 {[%emt 0:00:02]} cxd4 {[%emt 0:01:04]} 16. cxd4 {[%emt 0:00:10]} Qb4 {[%emt 0:01:28]} 17. Kb1 {[%emt 0:00:20]} Bd5 {[%emt 0:00:55]} 18. Nc3 {[%emt 0:04:39]} Bxf3 {[%emt 0:06:08]} 19. Qxf3 {[%emt 0:00:03]} Bxd4 {[%emt 0:00:26]} 20. a3 {[%emt 0:03:50]} Qb3 {[%emt 0:02:09]} 21. Bc2 {[%emt 0:01:13]} Qc4 {[%emt 0:00:08]} 22. Qe4 {[%emt 0:01:36]} e5 {[%emt 0:00:10]} 23. hxg6 {[%emt 0:00:04]} fxg6 {[%emt 0:00:40]} 24. Rxh7 {[%emt 0:00:22]} Rf5 {[%emt 0:00:32]} 25. Qxa8+ {[%emt 0:00:46]} Kxh7 {[%emt 0:00:12]} 26. Rh1+ {[%emt 0:00:02]} Kg7 {[%emt 0:00:02]} 27. Qh8+ {[%emt 0:00:03]} Kf7 {[%emt 0:00:04]} 28. Rh7+ {[%emt 0:00:03]} Ke6 {[%emt 0:00:09]} 29. Qe8+ {[%emt 0:00:09]} Kd6 {[%emt 0:00:14]} 30. Qxd7+ {[%emt 0:00:03]} Kc5 {[%emt 0:00:03]} 31. Ne4# {[%emt 0:00:02]} 1-0

[Event "World Prestigious University 2019"]
[Site "Tianjin"]
[Date "2019.11.29"]
[Round "11.9"]
[White "Serbanescu, Diana-Maria"]
[Black "Derakhshani, Dorsa"]
[Result "0-1"]
[WhiteElo "1990"]
[BlackElo "2277"]
[PlyCount "110"]
[EventDate "2019.11.26"]
[EventType "team-tourn"]
[EventCountry "CHN"]
[TimeControl "1500+10"]
[WhiteClock "0:01:28"]
[BlackClock "0:01:20"]

1. e4 {[%emt 0:00:00]} e5 {[%emt 0:00:00]} 2. Nf3 {[%emt 0:00:00]} Nc6 {[%emt 0:00:00]} 3. Bc4 {[%emt 0:00:01]} Bc5 {[%emt 0:00:04]} 4. c3 {[%emt 0:00:03]} Nf6 {[%emt 0:00:07]} 5. d3 {[%emt 0:00:02]} a6 {[%emt 0:00:18]} 6. a4 {[%emt 0:00:18]} d6 {[%emt 0:00:11]} 7. O-O {[%emt 0:00:15]} Ba7 {[%emt 0:00:22]} 8. h3 {[%emt 0:01:07]} Ne7 {[%emt 0:01:46]} 9. Bg5 {[%emt 0:03:26]} Ng6 {[%emt 0:01:20]} 10. Qb3 {[%emt 0:02:02]} O-O {[%emt 0:01:13]} 11. Nh4 {[%emt 0:03:39]} Nxh4 {[%emt 0:02:05]} 12. Bxh4 {[%emt 0:00:02]} h6 {[%emt 0:01:43]} 13. Qd1 {[%emt 0:01:50]} c6 {[%emt 0:02:14]} 14. Nd2 {[%emt 0:01:37]} g5 {[%emt 0:03:34]} 15. Bg3 {[%emt 0:00:03]} Be6 {[%emt 0:00:18]} 16. Kh2 {[%emt 0:02:25]} h5 {[%emt 0:02:22]} 17. f3 {[%emt 0:01:09]} h4 {[%emt 0:00:33]} 18. Bf2 {[%emt 0:00:02]} Bxf2 {[%emt 0:00:15]} 19. Rxf2 {[%emt 0:00:01]} Nh5 {[%emt 0:00:30]} 20. Nf1 {[%emt 0:01:31]} d5 {[%emt 0:01:15]} 21. Ba2 {[%emt 0:01:00]} Qf6 {[%emt 0:01:59]} 22. Qd2 {[%emt 0:00:53]} Rad8 {[%emt 0:00:42]} 23. exd5 {[%emt 0:01:28]} cxd5 {[%emt 0:00:10]} 24. d4 {[%emt 0:00:15]} Nf4 {[%emt 0:01:34]} 25. Re1 {[%emt 0:00:55]} e4 {[%emt 0:00:58]} 26. fxe4 {[%emt 0:01:13]} dxe4 {[%emt 0:00:00]} 27. Bxe6 {[%emt 0:00:04]} Qxe6 {[%emt 0:00:03]} 28. Rxf4 {[%emt 0:01:18]} gxf4 {[%emt 0:01:02]} 29. Qxf4 {[%emt 0:00:02]} f5 {[%emt 0:01:07]} 30. Qxh4 {[%emt 0:00:58]} Rd7 {[%emt 0:01:15]} 31. Qg5+ {[%emt 0:00:12]} Rg7 {[%emt 0:00:04]} 32. Qf4 {[%emt 0:00:01]} Qg6 {[%emt 0:00:09]} 33. Ne3 {[%emt 0:00:07]} Qg5 {[%emt 0:00:14]} 34. Rf1 {[%emt 0:00:16]} Kh7 {[%emt 0:00:43]} 35. Qxg5 {[%emt 0:00:34]} Rxg5 {[%emt 0:00:01]} 36. Rf4 {[%emt 0:00:01]} Kg7 {[%emt 0:00:26]} 37. Kg1 {[%emt 0:00:02]} Rf6 {[%emt 0:00:05]} 38. Kf2 {[%emt 0:00:03]} Kf7 {[%emt 0:00:04]} 39. c4 {[%emt 0:00:34]} Ke6 {[%emt 0:00:05]} 40. b4 {[%emt 0:00:29]} Rf7 {[%emt 0:00:32]} 41. c5 {[%emt 0:00:12]} Rd7 {[%emt 0:00:06]} 42. d5+ {[%emt 0:00:14]} Ke5 {[%emt 0:00:01]} 43. Rxf5+ {[%emt 0:01:13]} Rxf5+ {[%emt 0:00:05]} 44. Nxf5 {[%emt 0:00:01]} Kxf5 {[%emt 0:00:03]} 45. g4+ {[%emt 0:00:03]} Kf4 {[%emt 0:00:02]} 46. d6 {[%emt 0:00:01]} e3+ {[%emt 0:00:07]} 47. Ke2 {[%emt 0:00:01]} Ke4 {[%emt 0:00:04]} 48. h4 {[%emt 0:00:21]} Rf7 {[%emt 0:00:01]} 49. b5 {[%emt 0:00:12]} axb5 {[%emt 0:00:05]} 50. axb5 {[%emt 0:00:01]} Rf2+ {[%emt 0:00:01]} 51. Ke1 {[%emt 0:00:06]} Rd2 {[%emt 0:00:18]} 52. g5 {[%emt 0:00:11]} Kf3 {[%emt 0:00:03]} 53. g6 {[%emt 0:00:06]} Rg2 {[%emt 0:00:13]} 54. Kd1 {[%emt 0:00:03]} e2+ {[%emt 0:00:02]} 55. Kd2 {[%emt 0:00:07]} Rg1 {[%emt 0:00:08]} 0-1

[Event "World Prestigious University 2019"]
[Site "Tianjin"]
[Date "2019.11.29"]
[Round "11.10"]
[White "Wang, Yue"]
[Black "Fernandez, Daniel Howard"]
[Result "1-0"]
[WhiteElo "2674"]
[BlackElo "2444"]
[PlyCount "51"]
[EventDate "2019.11.26"]
[EventType "team-tourn"]
[EventCountry "CHN"]
[TimeControl "1500+10"]
[WhiteClock "0:07:45"]
[BlackClock "0:15:09"]

1. d4 {[%emt 0:00:00]} Nf6 {[%emt 0:00:00]} 2. c4 {[%emt 0:00:00]} g6 {[%emt 0:00:07]} 3. Nc3 {[%emt 0:00:10]} Bg7 {[%emt 0:00:02]} 4. e4 {[%emt 0:00:12]} d6 {[%emt 0:00:01]} 5. h3 {[%emt 0:00:04]} O-O {[%emt 0:00:07]} 6. Nf3 {[%emt 0:00:02]} e5 {[%emt 0:00:02]} 7. d5 {[%emt 0:00:29]} Nh5 {[%emt 0:00:08]} 8. g3 {[%emt 0:00:03]} Na6 {[%emt 0:00:04]} 9. Be3 {[%emt 0:02:38]} f5 {[%emt 0:00:21]} 10. exf5 {[%emt 0:00:05]} gxf5 {[%emt 0:00:02]} 11. Ng5 {[%emt 0:00:28]} Nf6 {[%emt 0:00:15]} 12. Qd2 {[%emt 0:00:45]} Nc5 {[%emt 0:02:40]} 13. O-O-O {[%emt 0:00:07]} Bd7 {[%emt 0:02:12]} 14. Be2 {[%emt 0:03:20]} Nfe4 {[%emt 0:03:42]} 15. Ngxe4 {[%emt 0:00:24]} Nxe4 {[%emt 0:00:31]} 16. Nxe4 {[%emt 0:00:02]} fxe4 {[%emt 0:00:03]} 17. Bg4 {[%emt 0:02:10]} Bf5 {[%emt 0:04:27]} 18. Bxf5 {[%emt 0:00:25]} Rxf5 {[%emt 0:00:02]} 19. Qc2 {[%emt 0:00:03]} b5 {[%emt 0:02:51]} 20. cxb5 {[%emt 0:00:53]} Qd7 {[%emt 0:00:29]} 21. Qc6 {[%emt 0:00:30]} Qc8 {[%emt 0:01:32]} 22. Kb1 {[%emt 0:00:11]} a6 {[%emt 0:00:05]} 23. Rc1 {[%emt 0:00:40]} Rf7 {[%emt 0:00:22]} 24. b6 {[%emt 0:00:05]} Rb8 {[%emt 0:00:58]} 25. bxc7 {[%emt 0:00:06]} Rb7 {[%emt 0:00:22]} 26. Qxb7 {[%emt 0:00:19]} 1-0

[Event "World Prestigious University 2019"]
[Site "Tianjin"]
[Date "2019.11.29"]
[Round "11.11"]
[White "Behar, Joshua"]
[Black "Li, Yankai"]
[Result "1/2-1/2"]
[WhiteElo "1974"]
[BlackElo "2432"]
[PlyCount "41"]
[EventDate "2019.11.26"]
[EventType "team-tourn"]
[EventCountry "CHN"]
[TimeControl "1500+10"]
[WhiteClock "0:11:30"]
[BlackClock "0:21:32"]

1. e4 {[%emt 0:00:00]} c5 {[%emt 0:00:00]} 2. Nf3 {[%emt 0:00:00]} d6 {[%emt 0:00:00]} 3. c3 {[%emt 0:00:00]} Nf6 {[%emt 0:00:01]} 4. h3 {[%emt 0:00:04]} Bd7 {[%emt 0:00:35]} 5. Bd3 {[%emt 0:00:05]} e6 {[%emt 0:04:17]} 6. Bc2 {[%emt 0:00:24]} Bc6 {[%emt 0:00:45]} 7. Qe2 {[%emt 0:00:09]} Be7 {[%emt 0:00:02]} 8. O-O {[%emt 0:00:05]} O-O {[%emt 0:00:26]} 9. d4 {[%emt 0:00:06]} cxd4 {[%emt 0:00:01]} 10. cxd4 {[%emt 0:00:02]} d5 {[%emt 0:00:30]} 11. e5 {[%emt 0:00:09]} Ne4 {[%emt 0:00:01]} 12. Nc3 {[%emt 0:00:16]} Nxc3 {[%emt 0:00:57]} 13. bxc3 {[%emt 0:00:03]} Qa5 {[%emt 0:00:01]} 14. Bg5 {[%emt 0:00:51]} Qd8 {[%emt 0:06:01]} 15. h4 {[%emt 0:00:40]} g6 {[%emt 0:01:18]} 16. Bh6 {[%emt 0:02:05]} Re8 {[%emt 0:00:36]} 17. h5 {[%emt 0:01:36]} Bf8 {[%emt 0:01:15]} 18. Bg5 {[%emt 0:00:07]} Be7 {[%emt 0:00:02]} 19. Bh6 {[%emt 0:00:05]} Bf8 {[%emt 0:00:01]} 20. Bg5 {[%emt 0:00:01]} Be7 {[%emt 0:00:01]} 21. Bh6 {[%emt 0:00:02]} 1/2-1/2

[Event "World Prestigious University 2019"]
[Site "Tianjin"]
[Date "2019.11.29"]
[Round "11.13"]
[White "Bibby, Simon"]
[Black "Grigory, Oparin"]
[Result "0-1"]
[WhiteElo "2167"]
[BlackElo "2660"]
[PlyCount "52"]
[EventDate "2019.11.26"]
[EventType "team-tourn"]
[EventCountry "CHN"]
[TimeControl "1500+10"]
[WhiteClock "0:04:49"]
[BlackClock "0:11:06"]

1. d4 {[%emt 0:00:00]} Nf6 {[%emt 0:00:00]} 2. Bg5 {[%emt 0:00:00]} e6 {[%emt 0:00:00]} 3. e4 {[%emt 0:00:01]} h6 {[%emt 0:00:00]} 4. Bxf6 {[%emt 0:00:02]} Qxf6 {[%emt 0:00:00]} 5. c3 {[%emt 0:00:07]} b6 {[%emt 0:00:51]} 6. Bd3 {[%emt 0:00:14]} Bb7 {[%emt 0:00:02]} 7. Ne2 {[%emt 0:00:12]} c5 {[%emt 0:01:10]} 8. O-O {[%emt 0:00:15]} cxd4 {[%emt 0:00:24]} 9. cxd4 {[%emt 0:00:02]} Nc6 {[%emt 0:00:11]} 10. d5 {[%emt 0:01:44]} Ne5 {[%emt 0:00:18]} 11. dxe6 {[%emt 0:00:13]} fxe6 {[%emt 0:00:19]} 12. Nbc3 {[%emt 0:01:48]} Be7 {[%emt 0:02:06]} 13. h3 {[%emt 0:01:35]} O-O {[%emt 0:00:13]} 14. f4 {[%emt 0:00:20]} Bc5+ {[%emt 0:01:24]} 15. Kh1 {[%emt 0:04:04]} Ng6 16. Qd2 {[%emt 0:04:12]} Qh4 {[%emt 0:01:19]} 17. Kh2 {[%emt 0:00:00]} Bf2 18. Nd1 {[%emt 0:00:00]} Rxf4 {[%emt 0:10:32]} 19. g3 {[%emt 0:00:00]} Bxg3+ 20. Nxg3 {[%emt 0:00:00]} Raf8 21. Ne3 {[%emt 0:02:00]} Rf3 22. Nef5 {[%emt 0:00:45]} R8xf5 23. Nxf5 Rxh3+ {[%emt 0:05:13]} 24. Kg1 {[%emt 0:00:30]} Rh1+ {[%emt 0:00:07]} 25. Kg2 {[%emt 0:00:02]} Qh2+ {[%emt 0:00:19]} 26. Kf3 {[%emt 0:00:08]} Qxd2 {[%emt 0:00:03]} 0-1

[Event "World Prestigious University 2019"]
[Site "Tianjin"]
[Date "2019.11.29"]
[Round "11.14"]
[White "Dmitry, Gordievskiy"]
[Black "Hirao, Satoshi"]
[Result "1-0"]
[WhiteElo "2590"]
[BlackElo "1958"]
[PlyCount "65"]
[EventDate "2019.11.26"]
[EventType "team-tourn"]
[EventCountry "CHN"]
[TimeControl "1500+10"]
[WhiteClock "0:00:12"]
[BlackClock "0:11:48"]

1. Nf3 {[%emt 0:00:00]} Nf6 {[%emt 0:00:00]} 2. c4 {[%emt 0:00:01]} e6 {[%emt 0:00:00]} 3. g3 {[%emt 0:00:13]} d5 {[%emt 0:00:07]} 4. b3 {[%emt 0:00:29]} b6 {[%emt 0:00:04]} 5. Bg2 {[%emt 0:00:03]} Bb7 {[%emt 0:00:03]} 6. Bb2 {[%emt 0:00:14]} Be7 {[%emt 0:00:09]} 7. O-O {[%emt 0:00:47]} O-O {[%emt 0:00:07]} 8. e3 {[%emt 0:00:11]} Nbd7 {[%emt 0:00:24]} 9. Nc3 {[%emt 0:00:58]} dxc4 {[%emt 0:03:16]} 10. bxc4 {[%emt 0:00:04]} c5 {[%emt 0:02:08]} 11. Qe2 {[%emt 0:00:10]} a6 {[%emt 0:03:06]} 12. a4 {[%emt 0:01:17]} Rb8 {[%emt 0:01:51]} 13. Rad1 {[%emt 0:01:18]} Qc7 {[%emt 0:00:24]} 14. Ne1 {[%emt 0:00:14]} Bxg2 {[%emt 0:02:29]} 15. Nxg2 {[%emt 0:00:03]} Rfc8 {[%emt 0:00:29]} 16. f4 {[%emt 0:00:06]} g6 {[%emt 0:00:45]} 17. g4 {[%emt 0:00:37]} e5 {[%emt 0:00:35]} 18. g5 {[%emt 0:01:17]} Nh5 {[%emt 0:00:43]} 19. Qf3 {[%emt 0:02:47]} exf4 {[%emt 0:01:13]} 20. Nd5 {[%emt 0:00:48]} Qd6 {[%emt 0:02:18]} 21. exf4 {[%emt 0:00:41]} Re8 {[%emt 0:01:21]} 22. Qc3 {[%emt 0:01:21]} f6 {[%emt 0:00:27]} 23. Nge3 {[%emt 0:00:09]} b5 {[%emt 0:02:00]} 24. axb5 {[%emt 0:00:14]} axb5 {[%emt 0:00:12]} 25. cxb5 {[%emt 0:00:08]} Nb6 {[%emt 0:00:50]} 26. Nxe7+ {[%emt 0:01:34]} Rxe7 {[%emt 0:00:35]} 27. gxf6 {[%emt 0:00:04]} Re4 {[%emt 0:01:27]} 28. Ra1 {[%emt 0:01:32]} Nd5 {[%emt 0:01:43]} 29. Qd3 {[%emt 0:00:57]} Nhxf4 {[%emt 0:00:50]} 30. Qxe4 {[%emt 0:00:10]} Nh3+ {[%emt 0:00:11]} 31. Kh1 {[%emt 0:00:04]} Ng5 {[%emt 0:00:10]} 32. f7+ {[%emt 0:00:09]} Nxf7 {[%emt 0:00:11]} 33. Nxd5 {[%emt 0:00:02]} 1-0

[Event "World Prestigious University 2019"]
[Site "Tianjin"]
[Date "2019.11.29"]
[Round "11.15"]
[White "Balashov, Yuri S"]
[Black "Wang, Nancy"]
[Result "0-1"]
[WhiteElo "2465"]
[BlackElo "1823"]
[PlyCount "74"]
[EventDate "2019.11.26"]
[EventType "team-tourn"]
[EventCountry "CHN"]
[TimeControl "1500+10"]
[WhiteClock "0:05:51"]
[BlackClock "0:01:23"]

1. e4 {[%emt 0:00:00]} c5 {[%emt 0:00:00]} 2. Nf3 {[%emt 0:00:32]} Nc6 {[%emt 0:00:00]} 3. d4 {[%emt 0:00:40]} cxd4 {[%emt 0:00:00]} 4. Nxd4 {[%emt 0:00:11]} g6 {[%emt 0:00:00]} 5. c3 {[%emt 0:00:38]} Nf6 {[%emt 0:00:19]} 6. Bd3 {[%emt 0:00:33]} Bg7 {[%emt 0:00:09]} 7. O-O {[%emt 0:00:47]} O-O {[%emt 0:00:12]} 8. Re1 {[%emt 0:00:06]} d6 {[%emt 0:00:20]} 9. Bg5 {[%emt 0:00:31]} h6 {[%emt 0:00:29]} 10. Bxf6 {[%emt 0:01:04]} Bxf6 {[%emt 0:00:03]} 11. Bc4 {[%emt 0:00:59]} Nxd4 {[%emt 0:00:59]} 12. cxd4 {[%emt 0:00:11]} Qb6 {[%emt 0:00:03]} 13. Qd2 {[%emt 0:00:51]} Qxd4 {[%emt 0:01:42]} 14. Qxd4 {[%emt 0:01:00]} Bxd4 {[%emt 0:00:02]} 15. Nc3 {[%emt 0:00:22]} Bd7 {[%emt 0:03:32]} 16. Nd5 {[%emt 0:02:36]} e6 {[%emt 0:01:36]} 17. Ne3 {[%emt 0:02:37]} Rac8 {[%emt 0:00:26]} 18. Bd3 {[%emt 0:01:17]} b5 {[%emt 0:05:51]} 19. Rab1 {[%emt 0:00:42]} a5 {[%emt 0:02:04]} 20. b3 {[%emt 0:01:42]} f5 {[%emt 0:01:21]} 21. exf5 {[%emt 0:01:52]} gxf5 {[%emt 0:00:03]} 22. Nc2 {[%emt 0:00:19]} Bc3 {[%emt 0:01:27]} 23. Red1 {[%emt 0:00:41]} Kf7 {[%emt 0:02:04]} 24. Na3 {[%emt 0:02:16]} Rc5 {[%emt 0:00:33]} 25. Rdc1 {[%emt 0:01:15]} Rfc8 {[%emt 0:00:02]} 26. g3 {[%emt 0:01:04]} e5 {[%emt 0:00:18]} 27. Rc2 {[%emt 0:01:09]} e4 {[%emt 0:00:16]} 28. Be2 {[%emt 0:00:03]} Bb4 {[%emt 0:00:10]} 29. Rxc5 {[%emt 0:00:17]} Rxc5 {[%emt 0:00:02]} 30. Nxb5 {[%emt 0:00:03]} Bxb5 {[%emt 0:00:02]} 31. Bh5+ {[%emt 0:00:05]} Kf6 {[%emt 0:00:03]} 32. a4 {[%emt 0:00:12]} Bd3 {[%emt 0:00:04]} 33. Rd1 {[%emt 0:00:05]} Rc2 {[%emt 0:00:04]} 34. Kg2 {[%emt 0:00:15]} Bc5 {[%emt 0:00:07]} 35. Kh3 {[%emt 0:01:51]} Rxf2 {[%emt 0:00:27]} 36. g4 {[%emt 0:00:48]} f4 {[%emt 0:00:15]} 37. Kh4 {[%emt 0:00:13]} Rxh2# {[%emt 0:00:14]} 0-1

[Event "World Prestigious University 2019"]
[Site "Tianjin"]
[Date "2019.11.29"]
[Round "11.16"]
[White "Li, Ethan"]
[Black "Daniel, Karim Abbas"]
[Result "1-0"]
[WhiteElo "2209"]
[BlackElo "2251"]
[PlyCount "121"]
[EventDate "2019.11.26"]
[EventType "team-tourn"]
[EventCountry "CHN"]
[TimeControl "1500+10"]
[WhiteClock "0:00:14"]
[BlackClock "0:02:05"]

1. d4 {[%emt 0:00:00]} Nf6 {[%emt 0:00:00]} 2. c4 {[%emt 0:00:00]} e6 {[%emt 0:00:00]} 3. Nf3 {[%emt 0:00:00]} c5 {[%emt 0:00:00]} 4. d5 {[%emt 0:00:00]} exd5 {[%emt 0:00:00]} 5. cxd5 {[%emt 0:00:00]} d6 {[%emt 0:00:00]} 6. Nc3 {[%emt 0:00:00]} g6 {[%emt 0:00:00]} 7. e4 {[%emt 0:00:00]} Bg7 {[%emt 0:00:00]} 8. h3 {[%emt 0:00:00]} O-O {[%emt 0:00:02]} 9. Bd3 {[%emt 0:00:00]} Nh5 {[%emt 0:00:03]} 10. O-O {[%emt 0:00:25]} Nd7 {[%emt 0:00:02]} 11. Bg5 {[%emt 0:00:28]} Bf6 {[%emt 0:00:01]} 12. Qd2 {[%emt 0:00:41]} Ne5 {[%emt 0:00:15]} 13. h4 {[%emt 0:01:13]} Nxf3+ {[%emt 0:02:18]} 14. gxf3 {[%emt 0:00:01]} h6 {[%emt 0:01:21]} 15. Bxh6 {[%emt 0:00:36]} Bxh4 {[%emt 0:00:02]} 16. Bxf8 {[%emt 0:00:32]} Bg5 {[%emt 0:00:46]} 17. Qc2 {[%emt 0:00:30]} Kxf8 {[%emt 0:02:01]} 18. Ne2 {[%emt 0:01:39]} Qf6 {[%emt 0:01:53]} 19. Qc3 {[%emt 0:01:39]} Qxf3 {[%emt 0:00:37]} 20. Bb5 {[%emt 0:00:18]} Qg4+ {[%emt 0:00:23]} 21. Ng3 {[%emt 0:00:02]} Bf6 {[%emt 0:00:26]} 22. Qe3 {[%emt 0:00:29]} Nf4 {[%emt 0:01:08]} 23. Be2 {[%emt 0:02:03]} Qh4 {[%emt 0:00:34]} 24. Rab1 {[%emt 0:01:40]} Be5 {[%emt 0:05:28]} 25. Rfd1 {[%emt 0:00:53]} Bh3 {[%emt 0:03:15]} 26. Bf3 {[%emt 0:01:01]} a5 {[%emt 0:03:44]} 27. a3 {[%emt 0:00:14]} Bd7 {[%emt 0:00:33]} 28. Kf1 {[%emt 0:01:24]} Bb5+ {[%emt 0:01:15]} 29. Ke1 {[%emt 0:00:12]} Nh3 {[%emt 0:00:27]} 30. Bg2 {[%emt 0:01:36]} Nf4 {[%emt 0:01:02]} 31. Bf3 {[%emt 0:00:20]} Nh3 {[%emt 0:00:15]} 32. Bg2 {[%emt 0:02:26]} Nf4 {[%emt 0:00:55]} 33. Bf3 {[%emt 0:00:12]} Re8 {[%emt 0:00:00]} 34. Kd2 {[%emt 0:02:16]} Nxd5 {[%emt 0:00:26]} 35. Qb3 {[%emt 0:00:17]} Qf4+ {[%emt 0:00:31]} 36. Kc2 {[%emt 0:00:14]} Nc7 {[%emt 0:00:22]} 37. a4 {[%emt 0:00:14]} Bc6 {[%emt 0:00:13]} 38. Rd3 {[%emt 0:00:44]} Ne6 {[%emt 0:00:15]} 39. Ne2 {[%emt 0:00:00]} Qh4 {[%emt 0:00:04]} 40. Rh1 {[%emt 0:00:01]} Qxf2 {[%emt 0:00:03]} 41. Kb1 {[%emt 0:00:22]} c4 {[%emt 0:00:19]} 42. Qxc4 {[%emt 0:00:10]} Nc5 {[%emt 0:00:01]} 43. Rh7 {[%emt 0:01:45]} Re7 {[%emt 0:00:20]} 44. Ra3 {[%emt 0:00:01]} Kg8 {[%emt 0:00:19]} 45. Rh1 {[%emt 0:00:04]} Bg7 {[%emt 0:00:11]} 46. Qc2 {[%emt 0:02:46]} Nxe4 {[%emt 0:00:20]} 47. Rd1 {[%emt 0:00:26]} Re8 {[%emt 0:00:15]} 48. Rad3 {[%emt 0:00:26]} Nc5 {[%emt 0:00:06]} 49. Bxc6 {[%emt 0:00:14]} Rxe2 {[%emt 0:00:05]} 50. R3d2 {[%emt 0:00:07]} Rxd2 {[%emt 0:00:05]} 51. Rxd2 {[%emt 0:00:01]} Qe1+ {[%emt 0:00:26]} 52. Rd1 {[%emt 0:00:00]} Qe5 {[%emt 0:00:01]} 53. Bxb7 {[%emt 0:00:36]} Nxa4 {[%emt 0:00:17]} 54. Qc8+ {[%emt 0:00:01]} Bf8 {[%emt 0:00:01]} 55. Qc2 {[%emt 0:00:07]} Bg7 {[%emt 0:00:02]} 56. Rd2 {[%emt 0:00:26]} Qe1+ {[%emt 0:00:34]} 57. Ka2 {[%emt 0:00:03]} Qe6+ {[%emt 0:00:08]} 58. Bd5 {[%emt 0:00:02]} Qe3 {[%emt 0:00:09]} 59. Qc8+ {[%emt 0:00:19]} Bf8 {[%emt 0:00:01]} 60. Qd7 {[%emt 0:00:29]} Qf4 {[%emt 0:00:26]} 61. Rd4 {[%emt 0:00:20]} 1-0